bitfinex/quotes_ETHUSD_20240607
["timestamp","ask_amount","ask_price","bid_price","bid_amount"]
[1717763123668,1.29696226,3825.1,3825.0,0.40777608]
[1717763124365,0.75,3825.1,3825.0,0.40777608]
[1717763125481,3.70655541,3825.2,3825.0,0.40777608]
[1717763126055,0.75,3825.1,3825.0,0.40777608]
[1717763126368,1.84227541,3825.1,3825.0,0.40777608]
[1717763126566,1.09227541,3825.1,3825.0,2.77897608]
[1717763126772,0.8211274,3825.1,3825.0,5.93262969]
[1717763127065,0.54741674,3825.3,3825.2,0.40777608]
[1717763127270,0.8211274,3825.4,3825.2,0.40777608]
[1717763127667,0.8211274,3825.4,3825.2,3.02198608]
[1717763127874,0.8211274,3825.4,3825.3,0.59325297]
[1717763128653,0.8211274,3825.5,3825.4,3.02187608]
[1717763130266,0.8211274,3825.6,3825.4,3.02187608]
[1717763130575,0.8211274,3825.5,3825.4,3.02187608]
[1717763130773,0.8211274,3825.5,3825.4,3.38338899]
[1717763131460,0.8211274,3825.5,3825.4,3.02187608]
[1717763132871,0.8211274,3825.5,3825.4,0.40777608]
[1717763133378,0.8211274,3825.6,3825.4,0.40777608]
[1717763134337,0.8211274,3825.5,3825.4,0.40777608]
[1717763134531,0.8211274,3825.6,3825.4,0.40777608]
[1717763134738,0.8211274,3825.6,3825.5,0.30219061]
[1717763135461,0.54732889,3825.6,3825.5,0.30219061]
[1717763135651,0.54732889,3825.7,3825.6,0.40777608]
[1717763136441,0.54732889,3825.8,3825.7,2.6139]
[1717763136866,0.54732889,3825.9,3825.8,0.40777608]
[1717763137181,0.54732889,3826.0,3825.9,2.61376]
[1717763137381,0.008,3826.1,3826.0,0.40777608]
[1717763137588,0.54732889,3826.3,3826.2,0.40777608]
[1717763137755,0.54732889,3826.4,3826.3,2.61349]
[1717763138076,0.54732889,3826.5,3826.3,2.61349]
[1717763138284,0.008,3826.6,3825.8,2.95747061]
[1717763138285,0.55532889,3826.6,3826.5,2.61335]
[1717763138483,0.008,3826.6,3826.5,2.61335]
[1717763139968,0.758,3826.6,3826.4,0.40777608]
[1717763140755,0.008,3826.6,3826.4,3.02117608]
[1717763142241,0.008,3826.6,3826.4,3.32329369]
[1717763142682,0.75,3826.8,3826.4,3.32329369]
[1717763142683,0.75,3826.8,3826.7,0.40777608]
[1717763143199,0.55532889,3827.0,3826.9,0.40777608]
[1717763143348,0.75,3827.1,3826.9,0.40777608]
[1717763143546,0.55532889,3827.2,3827.1,0.40777608]
[1717763143791,0.54732889,3827.2,3827.1,0.40777608]
[1717763144289,1.30532889,3827.3,3827.1,0.40777608]
[1717763145365,0.75,3826.9,3826.7,0.40777608]
[1717763145684,0.758,3827.1,3826.9,0.40777608]
[1717763145888,0.75,3827.1,3826.9,0.40777608]
[1717763146263,0.008,3827.2,3826.9,0.70987169]
[1717763146455,0.758,3827.3,3827.1,0.40777608]
[1717763153560,0.008,3827.3,3827.1,0.40777608]
[1717763153766,0.008,3827.4,3827.3,0.40777608]
[1717763153989,0.75,3827.7,3827.5,0.39977608]
[1717763155267,0.75,3827.9,3827.8,0.39977608]
[1717763155467,0.75,3828.1,3827.8,0.39977608]
[1717763156203,1.29732889,3828.3,3828.0,0.39977608]
[1717763156419,0.75,3828.3,3828.2,0.39977608]
[1717763159296,0.75,3828.5,3828.2,0.39977608]
[1717763159663,0.75,3828.6,3828.2,0.39977608]
[1717763161297,0.75,3828.6,3828.4,0.39977608]
[1717763162685,0.75,3828.6,3828.2,2.91333961]
[1717763162686,2.5,3828.9,3828.7,0.39977608]
[1717763163084,2.5,3828.9,3828.7,2.77647608]
[1717763163273,2.5,3828.9,3828.8,2.61178]
[1717763166492,2.5,3828.9,3828.8,5.61178]
[1717763166695,2.5,3828.9,3828.8,6.45060561]
[1717763167420,0.75,3829.9,3829.8,0.39977608]
[1717763167717,0.75,3830.1,3829.8,0.39977608]
[1717763167917,0.75,3830.1,3830.0,0.39977608]
[1717763168120,0.75,3830.3,3830.0,0.39977608]
[1717763168292,0.75,3830.5,3830.4,0.39977608]
[1717763172079,3.36066,3830.5,3830.0,0.39977608]
[1717763172277,0.75,3829.9,3829.8,0.39977608]
[1717763173513,1.871,3829.9,3829.8,0.39977608]
[1717763173884,2.621,3829.9,3829.8,0.39977608]
[1717763174189,2.61095,3830.1,3829.8,0.39977608]
[1717763174388,0.75,3829.9,3829.8,0.39977608]
[1717763174720,1.871,3830.0,3829.6,0.39977608]
[1717763174882,1.871,3830.0,3828.9,2.4676]
[1717763174883,2.61104,3829.9,3829.7,0.39977608]
[1717763175089,0.75,3829.8,3829.7,0.39977608]
[1717763175283,0.75,3829.2,3829.1,0.39977608]
[1717763175911,2.61143,3829.4,3829.3,0.39977608]
[1717763176327,0.75,3829.5,3829.3,0.39977608]
[1717763178343,0.75,3829.3,3829.2,0.39977608]
[1717763178538,0.75,3829.5,3829.4,0.39977608]
[1717763179011,0.75,3829.3,3829.2,0.39977608]
[1717763179844,2.61137,3829.4,3829.2,0.39977608]
[1717763180167,1.871,3829.9,3828.8,0.39977608]
[1717763180300,7.43,3830.0,3829.0,0.39977608]
[1717763180301,0.75,3829.1,3829.0,0.39977608]
[1717763186821,0.75,3828.9,3828.8,0.39977608]
[1717763187020,0.75,3828.4,3828.3,0.39977608]
[1717763187423,2.61205,3828.4,3828.3,0.39977608]
[1717763187840,3.36205,3828.4,3828.3,0.39977608]
[1717763188325,5.23305,3828.4,3828.3,0.39977608]
[1717763191464,3.36205,3828.4,3828.3,0.39977608]
[1717763192143,3.36186,3828.7,3828.3,0.39977608]
[1717763192664,3.36186,3828.7,3828.6,0.39977608]
[1717763192665,0.75,3828.7,3828.6,0.39977608]
[1717763193675,0.75,3828.7,3828.4,0.39977608]
[1717763194025,0.75,3828.7,3828.6,0.39977608]
[1717763194979,0.75,3828.5,3828.4,0.39977608]
[1717763195269,3.36204,3828.5,3828.4,0.39977608]
[1717763195471,5.23304,3828.5,3828.4,0.39977608]
[1717763196031,0.75,3827.7,3827.4,0.39977608]
[1717763196276,0.75,3827.4,3827.3,0.39977608]
[1717763196566,1.871,3827.4,3827.1,0.39977608]
[1717763196769,3.36281,3827.3,3827.2,0.39977608]
[1717763197269,0.75,3826.9,3826.8,0.39977608]
[1717763198171,0.75,3826.5,3826.4,0.70189369]
[1717763198376,0.75,3826.5,3826.4,0.39977608]
[1717763198578,0.54732889,3827.1,3826.9,0.39977608]
[1717763198942,0.75,3827.6,3827.5,0.39977608]
[1717763199143,1.29732889,3828.0,3827.9,0.39977608]
[1717763199387,0.75,3828.0,3827.8,0.39977608]
[1717763199546,1.871,3827.9,3827.8,0.39977608]
[1717763200546,1.29732889,3828.0,3827.8,0.39977608]
[1717763200898,0.75,3828.0,3827.9,0.30123661]
[1717763201246,2.61201,3828.5,3827.9,0.30123661]
[1717763201247,1.29732889,3828.3,3828.1,0.39977608]
[1717763201477,2.621,3828.3,3828.1,0.39977608]
[1717763204759,1.871,3828.3,3828.1,0.39977608]
[1717763204944,0.75,3828.2,3828.1,0.39977608]
[1717763205391,2.41832889,3828.3,3828.1,0.39977608]
[1717763205553,0.54732889,3828.2,3828.1,0.39977608]
[1717763206144,1.29732889,3828.2,3828.1,0.39977608]
[1717763206383,0.75,3828.2,3828.1,0.39977608]
[1717763209759,0.75,3828.2,3828.1,3.01203608]
[1717763209958,0.75,3828.2,3828.1,3.31323969]
[1717763210658,0.75,3828.4,3828.3,0.39977608]
[1717763212850,0.54732889,3828.7,3828.6,0.39977608]
[1717763213373,0.75,3828.8,3828.6,0.39977608]
[1717763216510,1.29732889,3828.8,3828.6,0.39977608]
[1717763216869,0.54732889,3828.7,3828.6,0.39977608]
[1717763217613,1.29732889,3828.8,3828.6,0.39977608]
[1717763218077,0.54732889,3828.7,3828.6,0.39977608]
[1717763218271,0.54732889,3828.7,3828.6,0.70096169]
[1717763218807,0.8211274,3828.7,3828.6,0.70096169]
[1717763219004,0.8211274,3828.7,3828.6,0.39977608]
[1717763219369,1.5711274,3828.7,3828.6,0.39977608]
[1717763221537,0.75,3828.7,3828.6,0.39977608]
[1717763221874,1.5711274,3828.7,3828.4,0.39977608]
[1717763222126,1.29628576,3828.5,3828.4,0.39977608]
[1717763222475,0.75,3828.5,3828.4,0.39977608]
[1717763222822,1.29636339,3828.5,3828.4,0.39977608]
[1717763223321,0.75,3828.5,3828.4,0.39977608]
[1717763223892,0.8211274,3828.6,3828.4,0.39977608]
[1717763224274,1.871,3829.0,3827.8,0.39977608]
[1717763224275,0.75,3827.9,3827.8,0.39977608]
[1717763224509,0.75,3827.7,3827.6,0.39977608]
[1717763224717,1.29661362,3827.7,3827.6,0.39977608]
[1717763225291,0.75,3827.7,3827.6,0.39977608]
[1717763225986,1.56992043,3827.7,3827.6,0.39977608]
[1717763228296,0.75,3827.7,3827.6,0.39977608]
[1717763229083,1.56992043,3827.7,3827.6,0.39977608]
[1717763229289,1.29679268,3827.7,3827.6,0.39977608]
[1717763230855,0.75,3827.7,3827.6,0.39977608]
[1717763231319,1.56992043,3827.7,3827.6,0.39977608]
[1717763232794,0.75,3827.7,3827.6,0.39977608]
[1717763234211,0.75,3827.7,3827.6,0.70103069]
[1717763235329,1.56992043,3827.7,3827.6,0.70103069]
[1717763235923,0.75,3827.7,3827.6,0.70103069]
[1717763238563,1.29699521,3827.7,3827.6,0.70103069]
[1717763239084,0.54699521,3827.7,3827.6,3.18123069]
[1717763239369,0.75,3828.1,3827.7,2.61253]
[1717763239370,1.29699521,3828.1,3827.7,2.61253]
[1717763239576,1.29699521,3828.1,3827.8,0.57937607]
[1717763239577,0.75,3828.1,3827.8,0.57937607]
[1717763239863,1.29699521,3828.1,3827.8,0.57937607]
[1717763240436,1.29699521,3828.1,3828.0,0.39977608]
[1717763240623,0.75,3828.1,3828.0,0.39977608]
[1717763241449,1.29699521,3828.1,3828.0,0.39977608]
[1717763241883,0.75,3828.1,3828.0,0.39977608]
[1717763243350,1.84322724,3828.1,3828.0,0.39977608]
[1717763243861,0.75,3828.1,3828.0,0.39977608]
[1717763244626,0.75,3827.9,3827.8,0.39977608]
[1717763247411,2.11850762,3827.9,3827.8,0.39977608]
[1717763247914,0.75,3827.9,3827.8,0.39977608]
[1717763248303,2.11850762,3827.9,3827.8,0.39977608]
[1717763249114,0.75,3827.9,3827.8,0.39977608]
[1717763249310,2.11850762,3827.9,3827.8,0.39977608]
[1717763250518,0.75,3827.9,3827.8,0.39977608]
[1717763251395,2.11850762,3827.9,3827.8,0.39977608]
[1717763251895,0.75,3827.9,3827.8,0.39977608]
[1717763252096,2.11848999,3827.9,3827.8,0.39977608]
[1717763252409,0.75,3827.9,3827.8,0.39977608]
[1717763252601,2.11839733,3827.9,3827.8,0.39977608]
[1717763254334,0.75,3827.9,3827.8,0.39977608]
[1717763256503,3.98072733,3828.0,3827.8,0.39977608]
[1717763256930,0.75,3827.9,3827.8,0.39977608]
[1717763258730,2.11839733,3827.9,3827.8,0.39977608]
[1717763259229,0.75,3827.9,3827.8,0.39977608]
[1717763261143,2.11839733,3827.9,3827.8,0.39977608]
[1717763265639,1.36839733,3827.9,3827.8,0.39977608]
[1717763265802,1.36839733,3828.0,3827.8,0.39977608]
[1717763266013,1.09560231,3827.9,3827.8,0.39977608]
[1717763266217,1.84560231,3827.9,3827.8,0.39977608]
[1717763266441,0.75,3827.9,3827.8,0.39977608]
[1717763267742,2.11962383,3827.9,3827.8,0.39977608]
[1717763268521,1.36962383,3828.0,3827.8,0.39977608]
[1717763268916,2.11962383,3827.9,3827.8,0.39977608]
[1717763269117,0.75,3827.9,3827.8,0.39977608]
[1717763269453,2.11962383,3827.9,3827.8,0.39977608]
[1717763271327,2.11962383,3827.9,3827.8,0.66879369]
[1717763273363,2.11962383,3827.9,3827.8,0.39977608]
[1717763274139,0.75,3827.9,3827.8,0.39977608]
[1717763274334,2.12056532,3827.9,3827.8,0.39977608]
[1717763276439,0.75,3827.9,3827.8,0.39977608]
[1717763276848,2.12057248,3827.9,3827.8,0.39977608]
[1717763278156,2.89957248,3827.9,3827.8,0.39977608]
[1717763278470,2.89957248,3827.9,3827.8,0.66879369]
[1717763281044,1.529,3827.9,3827.8,0.66879369]
[1717763281452,2.89952716,3827.9,3827.8,0.66879369]
[1717763281667,2.89952716,3827.9,3827.8,0.39977608]
[1717763281966,1.529,3827.9,3827.8,0.39977608]
[1717763282167,2.12053028,3827.9,3827.8,0.39977608]
[1717763282328,2.89953028,3827.9,3827.8,0.39977608]
[1717763285203,1.37053028,3827.9,3827.8,0.39977608]
[1717763285418,1.09633947,3827.9,3827.8,0.70101269]
[1717763285582,1.09633947,3828.1,3828.0,0.39977608]
[1717763285777,1.87533947,3828.1,3828.0,0.39977608]
[1717763286093,1.60118631,3828.1,3828.0,1.03111635]
[1717763286470,1.09633947,3828.2,3828.1,2.61226]
[1717763289185,2.62533947,3828.3,3828.1,2.61226]
[1717763290522,0.82177466,3828.2,3828.1,2.61226]
[1717763290807,0.779,3828.2,3828.1,2.61226]
[1717763291120,0.779,3828.2,3828.1,3.0067213]
[1717763291284,1.84633947,3828.3,3828.1,3.0067213]
[1717763291486,0.82169456,3828.2,3828.1,3.0067213]
[1717763291869,0.54779168,3828.3,3828.2,0.39977608]
[1717763292110,0.54779168,3828.4,3828.2,1.17877608]
[1717763292308,0.82169456,3828.6,3828.5,2.61198]
[1717763292309,0.54779168,3828.6,3828.5,2.61198]
[1717763292746,0.29972676,3828.8,3828.7,0.39977608]
[1717763292947,1.36892129,3829.3,3828.7,0.39977608]
[1717763292948,0.82169456,3829.3,3829.2,0.39977608]
[1717763293257,1.36892129,3829.7,3829.2,0.39977608]
[1717763293258,0.82169456,3829.7,3829.6,3.01100608]
[1717763293418,0.82169456,3830.1,3829.8,0.39977608]
[1717763293614,0.82169456,3830.1,3830.0,0.39977608]
[1717763293931,1.09633947,3830.3,3830.0,0.39977608]
[1717763293932,0.82169456,3830.2,3830.0,0.39977608]
[1717763294127,1.09633947,3830.3,3830.2,0.39977608]
[1717763294128,0.82169456,3830.3,3830.2,0.39977608]
[1717763294332,0.75,3830.4,3830.3,2.61076]
[1717763294515,0.75,3830.4,3830.2,0.39977608]
[1717763294850,0.75,3830.4,3830.2,0.70085069]
[1717763295355,0.75,3830.4,3830.2,3.31167069]
[1717763295543,0.75,3830.6,3830.5,0.39977608]
[1717763297945,0.75,3830.6,3830.5,0.39977608]
[1717763301357,0.75,3830.8,3830.7,0.39977608]
[1717763301686,2.61022,3831.1,3831.0,0.39977608]
[1717763301687,0.75,3831.1,3831.0,0.39977608]
[1717763301977,1.09633947,3831.8,3831.4,0.39977608]
[1717763301978,2.60974,3831.8,3831.4,0.39977608]
[1717763302177,2.60974,3831.8,3831.7,0.39977608]
[1717763302338,3.35974,3831.8,3831.7,0.39977608]
[1717763302542,0.75,3831.8,3831.7,0.39977608]
[1717763304855,0.75,3832.3,3832.2,0.39977608]
[1717763305687,1.866,3832.4,3832.2,0.39977608]
[1717763306194,0.75,3832.3,3832.2,0.39977608]
[1717763306796,0.75,3832.1,3832.0,0.39977608]
[1717763307186,2.60961,3832.0,3831.6,0.39977608]
[1717763307385,2.60961,3832.0,3831.8,0.39977608]
[1717763307549,2.616,3831.9,3831.8,0.39977608]
[1717763308447,1.866,3831.9,3831.6,0.39977608]
[1717763308647,0.75,3831.6,3831.5,0.39977608]
[1717763308897,2.616,3831.6,3831.5,0.39977608]
[1717763309889,0.75,3831.6,3831.5,0.39977608]
[1717763311307,4.47574,3831.8,3831.5,0.39977608]
[1717763311594,0.75,3831.5,3831.4,0.39977608]
[1717763311746,2.616,3831.5,3831.4,0.39977608]
[1717763313846,0.75,3831.5,3831.4,0.39977608]
[1717763317554,1.866,3832.0,3831.4,0.39977608]
[1717763317754,2.60955,3832.1,3831.9,0.39977608]
[1717763317956,0.75,3832.0,3831.9,0.39977608]
[1717763318890,2.616,3832.2,3832.1,0.39977608]
[1717763319260,0.75,3832.2,3832.1,0.39977608]
[1717763321394,0.75,3832.5,3832.4,0.39977608]
[1717763327370,0.75,3832.7,3832.6,0.39977608]
[1717763329591,0.75,3832.9,3832.7,2.60912]
[1717763329915,0.75,3832.9,3832.8,0.39977608]
[1717763330279,0.75,3832.9,3832.8,0.70066569]
[1717763330901,0.75,3833.1,3832.8,0.70066569]
[1717763331072,0.75,3833.3,3833.2,3.00855608]
[1717763331279,1.15868636,3833.6,3833.2,3.00855608]
[1717763331580,0.75,3833.6,3833.3,0.30085561]
[1717763332074,0.75,3833.6,3833.5,0.39977608]
[1717763332718,2.616,3833.8,3833.7,0.39977608]
[1717763333022,1.866,3833.8,3833.7,0.39977608]
[1717763333227,1.866,3833.8,3833.2,2.60878]
[1717763333437,0.75,3833.8,3833.7,0.39977608]
[1717763333580,2.616,3833.8,3833.7,0.39977608]
[1717763333784,2.616,3833.8,3832.8,3.00877608]
[1717763333785,0.75,3832.9,3832.8,3.00877608]
[1717763334226,0.75,3832.9,3832.8,0.39977608]
[1717763334427,2.616,3833.3,3833.2,0.39977608]
[1717763335088,0.75,3833.1,3833.0,0.39977608]
[1717763336682,0.75,3832.3,3832.2,0.39977608]
[1717763337602,0.75,3832.7,3832.6,0.39977608]
[1717763339312,0.75,3832.7,3832.5,0.39977608]
[1717763339512,1.866,3832.6,3832.5,0.39977608]
[1717763339944,0.75,3832.7,3832.5,0.39977608]
[1717763344567,0.75,3832.9,3832.8,0.39977608]
[1717763347293,0.75,3832.9,3832.0,3.0]
[1717763347294,0.82169456,3833.5,3833.4,0.39977608]
[1717763347446,0.75,3833.9,3833.8,0.39977608]
[1717763347844,1.866,3834.1,3833.8,0.39977608]
[1717763348042,1.866,3834.1,3833.6,0.39977608]
[1717763348286,2.616,3833.7,3833.6,0.39977608]
[1717763348442,2.616,3833.7,3833.4,0.39977608]
[1717763348443,0.75,3833.5,3833.4,0.39977608]
[1717763349799,0.75,3833.6,3833.5,0.39977608]
[1717763350104,0.82169456,3833.9,3833.7,0.39977608]
[1717763350400,0.82169456,3833.8,3833.7,0.39977608]
[1717763350702,0.82169456,3833.9,3833.7,0.39977608]
[1717763350856,0.75,3833.8,3833.7,0.39977608]
[1717763351056,0.82169456,3833.9,3833.7,0.39977608]
[1717763351613,0.82169456,3834.0,3833.9,0.39977608]
[1717763351957,1.57169456,3834.0,3833.9,0.39977608]
[1717763352161,0.82169456,3834.0,3833.9,0.39977608]
[1717763352394,0.75,3834.0,3833.9,0.39977608]
[1717763352974,0.724,3834.0,3833.9,0.39977608]
[1717763353505,4.2675502,3835.0,3834.2,0.39977608]
[1717763353506,0.724,3834.3,3834.2,0.39977608]
[1717763354581,0.724,3834.5,3834.4,0.39977608]
[1717763360051,2.59,3834.5,3834.4,0.39977608]
[1717763360280,0.724,3834.5,3834.4,0.39977608]
[1717763360778,1.866,3834.8,3834.4,0.39977608]
[1717763360977,0.82169456,3834.7,3834.1,0.39977608]
[1717763361177,0.724,3833.7,3833.6,0.39977608]
[1717763362354,2.59,3834.5,3834.3,0.39977608]
[1717763362738,0.724,3834.5,3834.3,0.39977608]
[1717763365289,0.1293627,3835.4,3834.9,0.39977608]
[1717763365290,0.724,3835.0,3834.9,0.39977608]
[1717763365974,0.1293627,3835.4,3835.3,0.39977608]
[1717763368547,0.8533627,3835.4,3835.3,0.39977608]
[1717763369345,0.1293627,3835.4,3835.3,0.39977608]
[1717763370097,0.1293627,3835.4,3835.3,0.70050569]
[1717763370849,0.1293627,3835.4,3835.3,0.30072961]
[1717763371154,0.8533627,3835.4,3835.3,0.39977608]
[1717763371389,0.1293627,3835.4,3835.3,0.39977608]
[1717763372492,0.8533627,3835.4,3835.3,0.39977608]
[1717763372794,0.1293627,3835.4,3835.3,0.39977608]
[1717763373193,0.8533627,3835.4,3835.3,0.39977608]
[1717763373351,0.1293627,3835.4,3835.3,0.39977608]
[1717763376183,0.1293627,3835.4,3835.3,0.73975369]
[1717763376399,0.1293627,3835.4,3835.3,0.39977608]
[1717763382604,0.8533627,3835.4,3835.3,0.39977608]
[1717763383213,0.1293627,3835.4,3835.3,0.39977608]
[1717763383681,0.1293627,3835.4,3834.5,2.60789]
[1717763383860,0.1293627,3835.4,3835.3,0.39977608]
[1717763384260,0.8533627,3835.4,3835.3,0.39977608]
[1717763384685,0.1293627,3835.4,3835.3,0.39977608]
[1717763385601,0.1293627,3835.4,3835.3,0.70050769]
[1717763386159,0.40838786,3836.9,3836.4,0.39977608]
[1717763388606,0.724,3837.1,3837.0,0.39977608]
[1717763389962,1.866,3837.2,3835.8,3.0]
[1717763389963,1.866,3837.2,3836.7,0.39977608]
[1717763390378,1.866,3837.2,3835.9,0.560704]
[1717763390379,2.38685102,3837.6,3837.0,0.39977608]
[1717763390601,0.724,3837.1,3837.0,0.39977608]
[1717763390801,0.724,3837.1,3836.7,0.39977608]
[1717763391001,2.59,3836.9,3836.4,0.39977608]
[1717763391211,1.866,3836.9,3836.4,0.39977608]
[1717763391391,0.724,3836.5,3836.4,0.39977608]
[1717763392424,1.37169456,3837.5,3835.8,3.0]
[1717763392425,1.866,3837.1,3836.8,0.39977608]
[1717763392721,1.5648195,3837.4,3836.8,0.39977608]
[1717763392892,1.866,3837.1,3836.5,0.39977608]
[1717763393095,0.724,3836.6,3836.5,0.39977608]
[1717763393275,1.5648195,3837.5,3837.2,0.39977608]
[1717763393476,0.724,3837.3,3837.2,0.39977608]
[1717763394295,1.866,3837.6,3836.8,0.39977608]
[1717763394605,1.866,3837.0,3836.8,0.39977608]
[1717763394802,0.724,3836.9,3836.8,0.39977608]
[1717763395506,0.724,3837.1,3837.0,0.39977608]
[1717763396012,2.59,3837.1,3837.0,0.39977608]
[1717763396706,1.866,3837.1,3837.0,0.39977608]
[1717763396934,0.724,3837.1,3836.9,0.39977608]
[1717763397067,2.59,3837.1,3836.9,0.39977608]
[1717763398368,0.724,3837.3,3837.2,0.39977608]
[1717763400242,1.5648195,3837.7,3836.9,0.39977608]
[1717763400539,2.1148195,3837.6,3837.0,0.39977608]
[1717763400740,0.724,3837.1,3837.0,0.39977608]
[1717763400941,0.724,3837.1,3836.0,3.0]
[1717763400942,0.724,3837.6,3837.4,0.39977608]
[1717763401115,0.724,3837.5,3837.4,0.39977608]
[1717763401319,2.38651406,3837.8,3837.7,0.39977608]
[1717763401569,0.81552507,3839.0,3838.4,0.39977608]
[1717763401752,1.48813704,3839.3,3839.1,0.39977608]
[1717763401753,0.94436128,3839.3,3839.1,0.39977608]
[1717763402073,0.94436128,3839.3,3837.3,2.742]
[1717763402074,1.11794954,3839.2,3837.7,2.60568]
[1717763402221,1.11794954,3839.2,3836.0,1.2828521]
[1717763402222,2.60591,3837.5,3836.7,0.008]
[1717763402423,1.79737511,3839.2,3835.7,1.06779771]
[1717763402424,0.58148639,3838.5,3836.8,0.28152613]
[1717763402721,2.60576,3837.7,3836.9,1.55480841]
[1717763402918,2.60576,3837.7,3834.5,2.60788]
[1717763402919,2.60576,3837.7,3836.5,1.55480841]
[1717763403120,0.37949884,3837.7,3836.8,0.13]
[1717763403352,0.37949884,3837.6,3836.8,0.13]
[1717763403626,1.56428931,3839.1,3836.8,0.13]
[1717763404021,1.56428931,3839.1,3836.6,1.83693708]
[1717763404022,0.75,3838.4,3836.6,1.83693708]
[1717763404139,0.75,3837.9,3836.6,1.83693708]
[1717763404340,3.922,3838.6,3836.6,1.83693708]
[1717763404341,0.30218941,3837.8,3836.6,1.83693708]
[1717763404538,3.922,3838.6,3836.6,1.83693708]
[1717763404539,4.20147532,3838.6,3836.6,1.83693708]
[1717763404740,1.56428931,3839.1,3836.7,1.55526028]
[1717763404741,2.60539,3838.2,3836.7,1.55526028]
[1717763405082,2.6058,3837.6,3836.6,0.2556768]
[1717763405551,3.3558,3837.6,3836.6,0.2556768]
[1717763405756,2.6064,3836.7,3836.6,0.2556768]
[1717763405973,2.6064,3836.7,3836.4,1.44807709]
[1717763405974,3.492,3836.1,3835.0,1.55526028]
[1717763406181,0.75,3835.7,3834.7,0.55526028]
[1717763406382,2.60751,3835.1,3834.2,0.82559388]
[1717763406532,1.56584222,3834.5,3834.1,0.28166935]
[1717763406969,0.55,3835.6,3832.6,0.82859816]
[1717763406970,2.11584222,3834.4,3832.6,0.82859816]
[1717763407173,0.0453,3830.8,3829.6,0.02608718]
[1717763407344,0.0453,3830.8,3828.0,1.08372061]
[1717763407345,2.61173,3828.9,3828.0,1.08372061]
[1717763407551,0.75,3827.9,3826.3,2.5]
[1717763407854,3.922,3828.4,3824.7,1.08706244]
[1717763407855,1.56815518,3826.7,3824.7,1.08706244]
[1717763408059,0.75,3826.6,3824.6,2.69964404]
[1717763408265,2.67667742,3827.8,3823.5,1.35882806]
[1717763408266,1.56899513,3825.3,3823.5,1.35882806]
[1717763408583,1.3,3826.5,3822.6,4.8588691]
[1717763408584,0.75,3825.2,3824.1,2.65]
[1717763408732,0.75,3825.2,3821.6,2.2428791]
[1717763408733,0.35657814,3825.3,3822.0,1.35882806]
[1717763408927,1.56899513,3825.4,3821.4,2.6168]
[1717763408928,3.922,3824.9,3821.4,2.6168]
[1717763409173,0.3922,3824.8,3821.4,2.5961627]
[1717763409494,0.3922,3824.8,3819.9,1.85908897]
[1717763409495,0.75,3819.6,3817.9,1.34662799]
[1717763409629,0.75,3819.6,3815.0,1.34700211]
[1717763409982,0.75,3819.6,3813.6,2.6731257]
[1717763409983,0.75,3822.2,3812.3,0.1916177]
[1717763409984,0.75,3816.0,3812.3,0.1916177]
[1717763410147,3.36549953,3818.9,3812.3,0.1916177]
[1717763410148,0.75,3814.0,3812.3,0.1916177]
[1717763410333,0.04548542,3810.6,3809.0,2.67396513]
[1717763410673,0.04548542,3810.6,3807.3,0.011]
[1717763410674,0.04548542,3810.6,3805.6,0.74999146]
[1717763410675,3.922,3809.1,3805.6,0.74999146]
[1717763410984,0.754,3809.2,3805.6,0.74999146]
[1717763411272,0.53046271,3809.9,3804.8,0.1022403]
[1717763411273,1.54549953,3808.3,3804.8,0.1022403]
[1717763411574,2.69577326,3805.3,3801.5,0.01995091]
[1717763411764,2.69577326,3805.3,3788.1,0.2606]
[1717763411765,0.008,3802.5,3788.1,0.2606]
[1717763412113,0.008,3800.3,3796.6,0.42615139]
[1717763412315,1.30380761,3801.0,3792.0,0.15332321]
[1717763412316,0.75,3800.1,3794.6,0.42615139]
[1717763412430,0.01257,3803.3,3792.9,4.47]
[1717763412431,0.15239265,3798.9,3796.0,0.13832321]
[1717763412632,2.62,3800.7,3796.5,0.008]
[1717763412931,2.63242,3798.8,3797.2,1.91]
[1717763413148,2.64,3800.7,3796.8,2.87e-06]
[1717763413343,2.64,3800.7,3796.5,0.75]
[1717763413344,1.0,3800.4,3796.5,0.75]
[1717763413542,0.2499234,3801.3,3797.9,0.75]
[1717763413769,0.4132504,3799.5,3797.8,2.63]
[1717763413977,0.4132504,3799.5,3796.8,0.008]
[1717763413978,0.4132504,3799.5,3797.6,0.75]
[1717763414140,2.63,3801.0,3798.0,1.0]
[1717763414141,3.0,3800.9,3798.0,1.0]
[1717763414346,3.0,3800.9,3792.4,1.36529117]
[1717763414347,0.41213116,3800.3,3798.5,7.82]
[1717763414599,0.41213116,3800.3,3798.6,3.6827]
[1717763414737,0.40071937,3798.7,3798.6,3.6827]
[1717763415107,0.41297999,3799.9,3796.9,0.008]
[1717763415312,0.75,3804.4,3798.6,35.06089751]
[1717763415579,0.31403143,3804.6,3800.0,0.008]
[1717763415784,3.962,3806.3,3800.0,0.008]
[1717763415785,0.40071937,3800.9,3800.5,0.008]
[1717763415931,0.40071937,3801.3,3800.6,0.03869621]
[1717763416135,0.40071937,3802.1,3800.2,2.63]
[1717763416434,0.28923134,3803.7,3800.3,0.03791428]
[1717763416632,0.40071937,3802.0,3800.7,0.008]
[1717763416840,0.40071937,3801.8,3800.3,0.03791428]
[1717763417033,0.40071937,3801.8,3800.2,2.638]
[1717763417034,0.40071937,3803.3,3800.8,0.03739476]
[1717763417355,0.06026207,3803.2,3800.9,2.57]
[1717763417535,0.06026207,3803.2,3799.6,0.292854]
[1717763417734,0.40071937,3803.0,3801.0,0.03447911]
[1717763417953,0.40071937,3802.7,3799.9,2.6316]
[1717763418213,0.40071937,3802.7,3794.1,5.95479894]
[1717763418214,0.40071937,3796.2,3794.1,3.31917894]
[1717763418355,0.35781937,3795.1,3794.1,3.31917894]
[1717763418554,2.63,3795.3,3792.2,2.63699]
[1717763418758,2.63,3795.3,3788.8,0.39218063]
[1717763418759,0.00799372,3795.2,3792.3,2.6369]
[1717763418983,0.00799372,3795.2,3788.0,2.6399]
[1717763418984,0.75,3793.2,3788.5,1.32473233]